[Event "*** Titled Tuesday Blitz"]
[Site "Chess.com"]
[Date "2020.05.12"]
[Round "6"]
[White "TargetA"]
[Black "artooon"]
[Result "0-1"]
[WhiteElo "2571"]
[BlackElo "2734"]
[TimeControl "180+1"]
[EndTime "11:03:56 PDT"]
[Termination "artooon won by checkmate"]

1. d4 {[%clk 0:03:00.9]} 1... Nf6 {[%clk 0:02:59.9]} 2. c4 {[%clk 0:03:01.4]}
2... e6 {[%clk 0:03:00.8]} 3. Nc3 {[%clk 0:03:01.2]} 3... Bb4 {[%clk 0:03:00.7]}
4. e3 {[%clk 0:02:59.7]} 4... O-O {[%clk 0:03:00.7]} 5. Nf3 {[%clk 0:02:58.6]}
5... d5 {[%clk 0:03:00.9]} 6. Qc2 {[%clk 0:02:57]} 6... c5 {[%clk 0:03:00.9]} 7.
Bd2 {[%clk 0:02:56.6]} 7... Nc6 {[%clk 0:03:00.3]} 8. Bd3 {[%clk 0:02:55.2]}
8... cxd4 {[%clk 0:03:00]} 9. exd4 {[%clk 0:02:50]} 9... dxc4 {[%clk 0:03:00.4]}
10. Bxc4 {[%clk 0:02:47.2]} 10... Nxd4 {[%clk 0:03:00.9]} 11. Nxd4 {[%clk
0:02:44.3]} 11... Qxd4 {[%clk 0:03:01.8]} 12. Be2 {[%clk 0:02:41]} 12... Qh4
{[%clk 0:02:37.6]} 13. O-O {[%clk 0:02:36.4]} 13... e5 {[%clk 0:02:37.8]} 14. g3
{[%clk 0:02:22.8]} 14... Qh3 {[%clk 0:02:34.5]} 15. Rfe1 {[%clk 0:02:04.8]}
15... Ng4 {[%clk 0:02:23.1]} 16. Bxg4 {[%clk 0:02:03.2]} 16... Bxg4 {[%clk
0:02:24]} 17. Qe4 {[%clk 0:01:58.9]} 17... Rad8 {[%clk 0:02:21.4]} 18. Bg5
{[%clk 0:01:52.9]} 18... f6 {[%clk 0:02:16.1]} 19. Qxb4 {[%clk 0:01:43.6]} 19...
fxg5 {[%clk 0:01:53]} 20. Rxe5 {[%clk 0:01:39.4]} 20... Rxf2 {[%clk 0:01:18.8]}
21. Kxf2 {[%clk 0:01:00.1]} 21... Qxh2+ {[%clk 0:01:18.9]} 22. Kf1 {[%clk
0:01:00.1]} 22... Bh3+ {[%clk 0:01:18.5]} 23. Ke1 {[%clk 0:00:59.6]} 23... Qd2#
{[%clk 0:01:14.7]} 0-1

[Event "*** Titled Tuesday Blitz"]
[Site "Chess.com"]
[Date "2020.05.12"]
[Round "6"]
[White "AnthonyWirig"]
[Black "14Sokol88"]
[Result "1-0"]
[WhiteElo "2596"]
[BlackElo "2380"]
[TimeControl "180+1"]
[EndTime "11:04:02 PDT"]
[Termination "AnthonyWirig won by checkmate"]

1. d4 {[%clk 0:03:00.9]} 1... Nf6 {[%clk 0:02:58.5]} 2. Bg5 {[%clk 0:03:01.4]}
2... d5 {[%clk 0:02:57.2]} 3. Bxf6 {[%clk 0:03:01.7]} 3... gxf6 {[%clk 0:02:56]}
4. e3 {[%clk 0:03:02.6]} 4... c5 {[%clk 0:02:53.1]} 5. Nc3 {[%clk 0:03:01.3]}
5... Nc6 {[%clk 0:02:48.4]} 6. Qh5 {[%clk 0:03:01.1]} 6... cxd4 {[%clk
0:02:37.3]} 7. exd4 {[%clk 0:02:59.6]} 7... Nxd4 {[%clk 0:02:36.9]} 8. O-O-O
{[%clk 0:02:58.5]} 8... e5 {[%clk 0:02:36.5]} 9. Nf3 {[%clk 0:02:50.7]} 9... Bc5
{[%clk 0:02:07.5]} 10. Nxe5 {[%clk 0:02:47.1]} 10... Be6 {[%clk 0:01:39.9]} 11.
Nd3 {[%clk 0:02:28.9]} 11... Bb6 {[%clk 0:01:38.2]} 12. Nf4 {[%clk 0:02:25.3]}
12... Ke7 {[%clk 0:01:09]} 13. Nfxd5+ {[%clk 0:02:23.8]} 13... Ke8 {[%clk
0:00:44.6]} 14. Rxd4 {[%clk 0:02:18.3]} 14... Bxd4 {[%clk 0:00:42.5]} 15. Bb5+
{[%clk 0:02:18.3]} 15... Kf8 {[%clk 0:00:31.8]} 16. Qh6+ {[%clk 0:02:14.9]}
16... Kg8 {[%clk 0:00:31.2]} 17. Rd1 {[%clk 0:01:57.2]} 17... Bxc3 {[%clk
0:00:18]} 18. Rd3 {[%clk 0:01:55.4]} 18... Be5 {[%clk 0:00:11.2]} 19. f4 {[%clk
0:01:51.9]} 19... Qxd5 {[%clk 0:00:06.6]} 20. Rg3+ {[%clk 0:01:50.1]} 20... Bg4
{[%clk 0:00:05.2]} 21. Rxg4# {[%clk 0:01:50.3]} 1-0

[Event "*** Titled Tuesday Blitz"]
[Site "Chess.com"]
[Date "2020.05.12"]
[Round "6"]
[White "Yashasd1995"]
[Black "SPEEDSKATER"]
[Result "0-1"]
[WhiteElo "2590"]
[BlackElo "2769"]
[TimeControl "180+1"]
[EndTime "11:04:07 PDT"]
[Termination "SPEEDSKATER won by resignation"]

1. b3 {[%clk 0:03:00.9]} 1... d5 {[%clk 0:02:56.9]} 2. Bb2 {[%clk 0:03:01.8]}
2... Bg4 {[%clk 0:02:56.3]} 3. d4 {[%clk 0:03:01]} 3... Nf6 {[%clk 0:02:55]} 4.
Nd2 {[%clk 0:03:01.4]} 4... e6 {[%clk 0:02:54.9]} 5. Ngf3 {[%clk 0:03:01.6]}
5... Nbd7 {[%clk 0:02:54.3]} 6. e3 {[%clk 0:03:01.9]} 6... Be7 {[%clk
0:02:53.3]} 7. Be2 {[%clk 0:03:02.3]} 7... O-O {[%clk 0:02:52.9]} 8. O-O {[%clk
0:03:02.8]} 8... c6 {[%clk 0:02:52.4]} 9. c4 {[%clk 0:03:00.1]} 9... a5 {[%clk
0:02:52.2]} 10. a3 {[%clk 0:02:59.9]} 10... h6 {[%clk 0:02:51.1]} 11. Ne5 {[%clk
0:02:54.7]} 11... Bxe2 {[%clk 0:02:48.5]} 12. Qxe2 {[%clk 0:02:55.6]} 12... Nxe5
{[%clk 0:02:48.5]} 13. dxe5 {[%clk 0:02:55.7]} 13... Nd7 {[%clk 0:02:49.4]} 14.
f4 {[%clk 0:02:55.8]} 14... f5 {[%clk 0:02:36.2]} 15. exf6 {[%clk 0:02:51.3]}
15... Bxf6 {[%clk 0:02:36.2]} 16. Nf3 {[%clk 0:02:51.1]} 16... Bxb2 {[%clk
0:02:31.4]} 17. Qxb2 {[%clk 0:02:52]} 17... Nc5 {[%clk 0:02:32.1]} 18. Rad1
{[%clk 0:02:47.6]} 18... Qf6 {[%clk 0:02:31.3]} 19. Ne5 {[%clk 0:02:44.1]} 19...
Nd7 {[%clk 0:02:22.9]} 20. cxd5 {[%clk 0:02:18.1]} 20... exd5 {[%clk 0:02:22.9]}
21. Nd3 {[%clk 0:01:59.7]} 21... Qxb2 {[%clk 0:02:21.3]} 22. Nxb2 {[%clk
0:02:00.6]} 22... Rfe8 {[%clk 0:02:19.2]} 23. Rfe1 {[%clk 0:01:52.8]} 23... Nc5
{[%clk 0:02:18.9]} 24. b4 {[%clk 0:01:51.9]} 24... axb4 {[%clk 0:02:18.9]} 25.
axb4 {[%clk 0:01:52.1]} 25... Ne4 {[%clk 0:02:18.8]} 26. Ra1 {[%clk 0:01:48.8]}
26... Kf7 {[%clk 0:02:14.2]} 27. Nd3 {[%clk 0:01:44.3]} 27... Ke7 {[%clk
0:02:11]} 28. Kf1 {[%clk 0:01:31.5]} 28... Kd6 {[%clk 0:02:10.3]} 29. Ke2 {[%clk
0:01:31.7]} 29... b6 {[%clk 0:02:07.6]} 30. Ne5 {[%clk 0:01:21]} 30... c5 {[%clk
0:02:01]} 31. bxc5+ {[%clk 0:01:20.4]} 31... bxc5 {[%clk 0:02:01.9]} 32. Kd3
{[%clk 0:01:17.4]} 32... Reb8 {[%clk 0:02:00]} 33. Rxa8 {[%clk 0:00:47.9]} 33...
Rxa8 {[%clk 0:01:59.7]} 34. Re2 {[%clk 0:00:42.4]} 34... Ra3+ {[%clk 0:01:45.3]}
35. Kc2 {[%clk 0:00:42.3]} 35... Ra2+ {[%clk 0:01:45.7]} 36. Kd3 {[%clk
0:00:42.5]} 36... c4+ {[%clk 0:01:45.1]} 0-1

[Event "*** Titled Tuesday Blitz"]
[Site "Chess.com"]
[Date "2020.05.12"]
[Round "6"]
[White "the_drake"]
[Black "NefeLV"]
[Result "0-1"]
[WhiteElo "2187"]
[BlackElo "1807"]
[TimeControl "180+1"]
[EndTime "11:04:11 PDT"]
[Termination "NefeLV won by checkmate"]

1. e4 {[%clk 0:02:59.9]} 1... e5 {[%clk 0:01:44.7]} 2. Nf3 {[%clk 0:02:58.9]}
2... Nc6 {[%clk 0:01:14.4]} 3. Bc4 {[%clk 0:02:57.4]} 3... Bc5 {[%clk
0:01:13.6]} 4. b4 {[%clk 0:02:56.5]} 4... Bxb4 {[%clk 0:01:12.9]} 5. c3 {[%clk
0:02:56.2]} 5... Ba5 {[%clk 0:01:13]} 6. d4 {[%clk 0:02:56.5]} 6... exd4 {[%clk
0:01:13.2]} 7. O-O {[%clk 0:02:56.6]} 7... Nge7 {[%clk 0:01:09.2]} 8. Ng5 {[%clk
0:02:51.7]} 8... O-O {[%clk 0:01:06]} 9. Qh5 {[%clk 0:02:50.8]} 9... h6 {[%clk
0:01:05.9]} 10. Nxf7 {[%clk 0:02:45.9]} 10... Rxf7 {[%clk 0:00:56.3]} 11. Qxf7+
{[%clk 0:02:43.5]} 11... Kh7 {[%clk 0:00:56.1]} 12. cxd4 {[%clk 0:02:37.7]}
12... Nxd4 {[%clk 0:00:53.6]} 13. Bb2 {[%clk 0:02:33.5]} 13... Nec6 {[%clk
0:00:45.6]} 14. Rd1 {[%clk 0:02:24.5]} 14... Ne5 {[%clk 0:00:43.4]} 15. Qd5
{[%clk 0:02:12.8]} 15... Ndf3+ {[%clk 0:00:36.9]} 16. gxf3 {[%clk 0:02:09.4]}
16... Nxf3+ {[%clk 0:00:36.6]} 17. Kg2 {[%clk 0:02:07.2]} 17... Nh4+ {[%clk
0:00:35.9]} 18. Kh3 {[%clk 0:02:06]} 18... d6+ {[%clk 0:00:34.8]} 19. Kg3 {[%clk
0:01:55.6]} 19... Qg5+ {[%clk 0:00:32.4]} 20. Qxg5 {[%clk 0:01:54.3]} 20... hxg5
{[%clk 0:00:33.3]} 21. Nc3 {[%clk 0:01:49.4]} 21... Bd7 {[%clk 0:00:31.7]} 22.
Nd5 {[%clk 0:01:49.2]} 22... Rf8 {[%clk 0:00:29.4]} 23. f4 {[%clk 0:01:49]}
23... c6 {[%clk 0:00:19.9]} 24. fxg5 {[%clk 0:01:38.6]} 24... Rf3+ {[%clk
0:00:19.2]} 25. Kxh4 {[%clk 0:01:38.3]} 25... Rh3# {[%clk 0:00:19]} 0-1

[Event "*** Titled Tuesday Blitz"]
[Site "Chess.com"]
[Date "2020.05.12"]
[Round "6"]
[White "Kavyev_Ruslan"]
[Black "Rozum_Ivan"]
[Result "1-0"]
[WhiteElo "2471"]
[BlackElo "2597"]
[TimeControl "180+1"]
[EndTime "11:04:15 PDT"]
[Termination "Kavyev_Ruslan won by resignation"]

1. d4 {[%clk 0:03:00.2]} 1... Nf6 {[%clk 0:02:59.7]} 2. c4 {[%clk 0:02:56.5]}
2... e6 {[%clk 0:02:59.9]} 3. Nf3 {[%clk 0:02:56.3]} 3... d5 {[%clk 0:02:58.1]}
4. g3 {[%clk 0:02:56.6]} 4... Bb4+ {[%clk 0:02:56.8]} 5. Bd2 {[%clk 0:02:56.4]}
5... Bd6 {[%clk 0:02:56.9]} 6. Bg2 {[%clk 0:02:56.5]} 6... O-O {[%clk
0:02:56.3]} 7. O-O {[%clk 0:02:57.1]} 7... c6 {[%clk 0:02:56.4]} 8. Qc2 {[%clk
0:02:54.7]} 8... Nbd7 {[%clk 0:02:56]} 9. Nc3 {[%clk 0:02:54.1]} 9... dxc4
{[%clk 0:02:55.5]} 10. Rfd1 {[%clk 0:02:52.6]} 10... b5 {[%clk 0:02:54.4]} 11.
Bg5 {[%clk 0:02:51.7]} 11... Bb7 {[%clk 0:02:52]} 12. b3 {[%clk 0:02:48.3]}
12... cxb3 {[%clk 0:02:50.6]} 13. axb3 {[%clk 0:02:49.2]} 13... h6 {[%clk
0:02:45.8]} 14. Bxf6 {[%clk 0:02:48.9]} 14... Nxf6 {[%clk 0:02:45.7]} 15. Ne5
{[%clk 0:02:49.5]} 15... Qb6 {[%clk 0:02:42.9]} 16. Ne4 {[%clk 0:02:46]} 16...
Nxe4 {[%clk 0:02:31.6]} 17. Bxe4 {[%clk 0:02:45.8]} 17... Bxe5 {[%clk 0:02:17]}
18. dxe5 {[%clk 0:02:46.7]} 18... Rfd8 {[%clk 0:02:17.6]} 19. b4 {[%clk
0:02:47]} 19... a5 {[%clk 0:02:09.1]} 20. bxa5 {[%clk 0:02:33.9]} 20... Rxa5
{[%clk 0:02:03.7]} 21. Rxd8+ {[%clk 0:02:13.7]} 21... Qxd8 {[%clk 0:02:04.6]}
22. Rd1 {[%clk 0:02:14]} 22... Qc7 {[%clk 0:02:03.5]} 23. Rd6 {[%clk 0:01:57.3]}
23... b4 {[%clk 0:01:58.5]} 24. Qd2 {[%clk 0:01:54.6]} 24... g6 {[%clk
0:01:35.2]} 25. Qxh6 {[%clk 0:01:46.7]} 25... Rxe5 {[%clk 0:01:32.4]} 26. Bxg6
{[%clk 0:01:46.2]} 26... fxg6 {[%clk 0:01:16.8]} 27. Qxg6+ {[%clk 0:01:47.1]}
27... Kh8 {[%clk 0:01:00.1]} 28. Qe8+ {[%clk 0:01:29.1]} 28... Kg7 {[%clk
0:00:56.2]} 29. Rd7+ {[%clk 0:01:30]} 29... Qxd7 {[%clk 0:00:55.3]} 30. Qxd7+
{[%clk 0:01:30.9]} 30... Kf6 {[%clk 0:00:53.7]} 31. Qxb7 {[%clk 0:01:31.2]}
31... c5 {[%clk 0:00:50.2]} 32. e4 {[%clk 0:01:23.9]} 1-0

[Event "*** Titled Tuesday Blitz"]
[Site "Chess.com"]
[Date "2020.05.12"]
[Round "6"]
[White "GMStefanova"]
[Black "GMJustin"]
[Result "1-0"]
[WhiteElo "2634"]
[BlackElo "2337"]
[TimeControl "180+1"]
[EndTime "11:04:16 PDT"]
[Termination "GMStefanova won on time"]

1. d4 {[%clk 0:03:00.9]} 1... Nf6 {[%clk 0:02:56]} 2. Nf3 {[%clk 0:03:00]} 2...
g6 {[%clk 0:02:52.2]} 3. g3 {[%clk 0:03:00.1]} 3... Bg7 {[%clk 0:02:48]} 4. Bg2
{[%clk 0:03:00.2]} 4... d5 {[%clk 0:02:47]} 5. O-O {[%clk 0:02:58.2]} 5... O-O
{[%clk 0:02:46.8]} 6. Be3 {[%clk 0:02:57.4]} 6... c6 {[%clk 0:02:44.7]} 7. Qc1
{[%clk 0:02:56.8]} 7... Bf5 {[%clk 0:02:40.7]} 8. h3 {[%clk 0:02:56.4]} 8... Ne4
{[%clk 0:02:14.3]} 9. Bh6 {[%clk 0:02:49.8]} 9... Qb6 {[%clk 0:01:59.6]} 10.
Bxg7 {[%clk 0:02:47.8]} 10... Kxg7 {[%clk 0:01:59.7]} 11. Rd1 {[%clk 0:02:40.2]}
11... Nd7 {[%clk 0:01:51.6]} 12. c4 {[%clk 0:02:37.3]} 12... e5 {[%clk
0:01:38.9]} 13. e3 {[%clk 0:02:29.6]} 13... dxc4 {[%clk 0:01:22.9]} 14. Na3
{[%clk 0:02:24.2]} 14... exd4 {[%clk 0:00:49.9]} 15. Nxd4 {[%clk 0:02:22.8]}
15... Ndf6 {[%clk 0:00:22.2]} 16. Nxf5+ {[%clk 0:02:18.3]} 16... gxf5 {[%clk
0:00:21.6]} 17. Nxc4 {[%clk 0:02:17.2]} 17... Qc5 {[%clk 0:00:21]} 18. Nd6
{[%clk 0:02:06.4]} 18... Qxc1 {[%clk 0:00:17]} 19. Nxf5+ {[%clk 0:02:01.9]}
19... Kg6 {[%clk 0:00:10.2]} 20. Ne7+ {[%clk 0:01:57.8]} 20... Kg7 {[%clk
0:00:09.1]} 21. Raxc1 {[%clk 0:01:56.8]} 21... Rfd8 {[%clk 0:00:05]} 22. Nf5+
{[%clk 0:01:52.5]} 22... Kg6 {[%clk 0:00:04.7]} 23. g4 {[%clk 0:01:44.8]} 23...
h5 {[%clk 0:00:01.8]} 24. Nh4+ {[%clk 0:01:43.1]} 1-0

[Event "*** Titled Tuesday Blitz"]
[Site "Chess.com"]
[Date "2020.05.12"]
[Round "6"]
[White "GothamChess"]
[Black "A-Fier"]
[Result "0-1"]
[WhiteElo "2597"]
[BlackElo "2773"]
[TimeControl "180+1"]
[EndTime "11:04:17 PDT"]
[Termination "A-Fier won by checkmate"]

1. e4 {[%clk 0:03:00.9]} 1... c5 {[%clk 0:02:59.5]} 2. a3 {[%clk 0:03:00.6]}
2... g6 {[%clk 0:02:59.1]} 3. Nc3 {[%clk 0:03:00.7]} 3... Bg7 {[%clk 0:02:59.1]}
4. Bc4 {[%clk 0:03:01.2]} 4... Nc6 {[%clk 0:02:59.7]} 5. d3 {[%clk 0:03:01.3]}
5... e6 {[%clk 0:03:00.1]} 6. Ba2 {[%clk 0:02:59.6]} 6... Nge7 {[%clk
0:03:00.6]} 7. h4 {[%clk 0:02:59.8]} 7... h5 {[%clk 0:02:59.9]} 8. Bg5 {[%clk
0:02:52.3]} 8... Qc7 {[%clk 0:02:57.4]} 9. Nge2 {[%clk 0:02:49.9]} 9... a6
{[%clk 0:02:56.9]} 10. Qd2 {[%clk 0:02:49.2]} 10... b6 {[%clk 0:02:56.9]} 11.
Be3 {[%clk 0:02:39]} 11... Bb7 {[%clk 0:02:56.4]} 12. d4 {[%clk 0:02:39.1]}
12... cxd4 {[%clk 0:02:56.2]} 13. Nxd4 {[%clk 0:02:39.3]} 13... O-O {[%clk
0:02:54.7]} 14. g4 {[%clk 0:02:31]} 14... Qe5 {[%clk 0:02:37.9]} 15. Nf3 {[%clk
0:02:17.6]} 15... Qa5 {[%clk 0:02:34.1]} 16. gxh5 {[%clk 0:02:09.8]} 16... Qxh5
{[%clk 0:02:33.2]} 17. Rh3 {[%clk 0:01:58.6]} 17... d5 {[%clk 0:02:28]} 18.
O-O-O {[%clk 0:01:43.8]} 18... d4 {[%clk 0:02:04.3]} 19. Nxd4 {[%clk 0:01:33.1]}
19... Nxd4 {[%clk 0:02:03.7]} 20. Bxd4 {[%clk 0:01:33.2]} 20... Rad8 {[%clk
0:02:03.6]} 21. Qe3 {[%clk 0:01:24.1]} 21... Rxd4 {[%clk 0:01:55.6]} 22. Rxd4
{[%clk 0:01:25]} 22... Bh6 {[%clk 0:01:55.7]} 23. f4 {[%clk 0:01:23.5]} 23... e5
{[%clk 0:01:56.2]} 24. Rd2 {[%clk 0:01:14.5]} 24... Bxf4 {[%clk 0:01:52.6]} 25.
Qxb6 {[%clk 0:01:11.9]} 25... Bc8 {[%clk 0:01:44.9]} 26. Rd3 {[%clk 0:00:59.7]}
26... Qxh4 {[%clk 0:01:44.8]} 27. Qg1 {[%clk 0:00:53.2]} 27... Nc6 {[%clk
0:01:38.4]} 28. Qxg6+ {[%clk 0:00:52.6]} 28... Kh8 {[%clk 0:01:37.9]} 29. Qxc6
{[%clk 0:00:50.1]} 29... Bg4 {[%clk 0:01:30.8]} 30. Qd6 {[%clk 0:00:37.3]} 30...
Qe1+ {[%clk 0:01:29.8]} 31. Nd1 {[%clk 0:00:29.3]} 31... Qxd1# {[%clk
0:01:30.7]} 0-1

[Event "*** Titled Tuesday Blitz"]
[Site "Chess.com"]
[Date "2020.05.12"]
[Round "6"]
[White "mbachez"]
[Black "Gajuchess"]
[Result "0-1"]
[WhiteElo "2482"]
[BlackElo "2698"]
[TimeControl "180+1"]
[EndTime "11:04:19 PDT"]
[Termination "Gajuchess won by resignation"]

1. e4 {[%clk 0:03:00.9]} 1... c6 {[%clk 0:02:56.4]} 2. d4 {[%clk 0:02:58.9]}
2... d5 {[%clk 0:02:57.3]} 3. Nc3 {[%clk 0:02:59.1]} 3... dxe4 {[%clk
0:02:56.5]} 4. Nxe4 {[%clk 0:02:59.4]} 4... Nf6 {[%clk 0:02:56.9]} 5. Nxf6+
{[%clk 0:02:57.7]} 5... exf6 {[%clk 0:02:57.8]} 6. c3 {[%clk 0:02:56.2]} 6...
Bd6 {[%clk 0:02:54.7]} 7. Qe2+ {[%clk 0:02:54.2]} 7... Kf8 {[%clk 0:02:53]} 8.
Nf3 {[%clk 0:02:52]} 8... Bf5 {[%clk 0:02:51.7]} 9. Nh4 {[%clk 0:02:47.1]} 9...
Be6 {[%clk 0:02:48.8]} 10. Qf3 {[%clk 0:02:43.3]} 10... Qd7 {[%clk 0:02:43]} 11.
Bd3 {[%clk 0:02:43.1]} 11... Bg4 {[%clk 0:02:40.5]} 12. Qe4 {[%clk 0:02:39.2]}
12... Na6 {[%clk 0:02:38.4]} 13. Bxa6 {[%clk 0:01:47.9]} 13... Re8 {[%clk
0:02:36.9]} 14. Bd3 {[%clk 0:01:45.9]} 14... Rxe4+ {[%clk 0:02:35.9]} 15. Bxe4
{[%clk 0:01:45.6]} 15... Qe7 {[%clk 0:02:35]} 16. f3 {[%clk 0:01:45]} 16... f5
{[%clk 0:02:35.1]} 17. fxg4 {[%clk 0:00:56.2]} 17... Qxe4+ {[%clk 0:02:22.5]}
18. Kf2 {[%clk 0:00:52.7]} 18... Qc2+ {[%clk 0:02:14.9]} 19. Kf3 {[%clk
0:00:42.9]} 19... fxg4+ {[%clk 0:02:14.4]} 20. Kxg4 {[%clk 0:00:42.7]} 20...
Qe4+ {[%clk 0:01:52.7]} 21. Kh3 {[%clk 0:00:41.9]} 21... h5 {[%clk 0:01:52.2]}
22. g3 {[%clk 0:00:28.7]} 22... Qxh1 {[%clk 0:01:51.7]} 23. Bf4 {[%clk
0:00:27.5]} 23... Qxa1 {[%clk 0:01:48.9]} 24. Bxd6+ {[%clk 0:00:27.4]} 24... Ke8
{[%clk 0:01:48.9]} 25. Ba3 {[%clk 0:00:25.8]} 25... Qd1 {[%clk 0:01:47.2]} 26.
Kg2 {[%clk 0:00:24.4]} 26... Qe2+ {[%clk 0:01:47]} 27. Kg1 {[%clk 0:00:24]}
27... Kd7 {[%clk 0:01:44.6]} 28. Ng2 {[%clk 0:00:19.9]} 28... Re8 {[%clk
0:01:43.1]} 29. Nf4 {[%clk 0:00:19.9]} 29... Qf3 {[%clk 0:01:41.5]} 0-1

[Event "*** Titled Tuesday Blitz"]
[Site "Chess.com"]
[Date "2020.05.12"]
[Round "6"]
[White "Baby_Legs"]
[Black "Kildepiotr"]
[Result "1-0"]
[WhiteElo "2727"]
[BlackElo "2552"]
[TimeControl "180+1"]
[EndTime "11:04:20 PDT"]
[Termination "Baby_Legs won by resignation"]

1. d4 {[%clk 0:03:00.9]} 1... Nf6 {[%clk 0:02:58.9]} 2. c4 {[%clk 0:03:00.9]}
2... e6 {[%clk 0:02:59.2]} 3. Nc3 {[%clk 0:03:01.1]} 3... Bb4 {[%clk 0:02:59.3]}
4. Qc2 {[%clk 0:03:01.2]} 4... d5 {[%clk 0:02:58.7]} 5. cxd5 {[%clk 0:02:59.4]}
5... exd5 {[%clk 0:02:58.7]} 6. Bg5 {[%clk 0:02:59.3]} 6... h6 {[%clk
0:02:58.8]} 7. Bh4 {[%clk 0:02:59]} 7... c5 {[%clk 0:02:55]} 8. dxc5 {[%clk
0:02:58.5]} 8... Nbd7 {[%clk 0:02:41.9]} 9. a3 {[%clk 0:02:50.2]} 9... Qa5
{[%clk 0:02:40]} 10. Rc1 {[%clk 0:02:45.4]} 10... Bxc3+ {[%clk 0:02:36.7]} 11.
Qxc3 {[%clk 0:02:45.3]} 11... Qxc3+ {[%clk 0:02:36.3]} 12. Rxc3 {[%clk
0:02:44.9]} 12... Ne4 {[%clk 0:02:36.7]} 13. Rc1 {[%clk 0:02:40.7]} 13... Nexc5
{[%clk 0:02:29]} 14. Nf3 {[%clk 0:02:40.7]} 14... f5 {[%clk 0:02:22.2]} 15. e3
{[%clk 0:02:34.8]} 15... g5 {[%clk 0:02:15.3]} 16. Bg3 {[%clk 0:02:34.8]} 16...
Ne4 {[%clk 0:02:15.6]} 17. Nd4 {[%clk 0:02:26.8]} 17... Ndf6 {[%clk 0:02:08.3]}
18. Be5 {[%clk 0:02:23.2]} 18... O-O {[%clk 0:02:05.7]} 19. f3 {[%clk
0:02:22.6]} 19... Re8 {[%clk 0:02:04]} 20. Bc7 {[%clk 0:02:17.5]} 20... f4
{[%clk 0:01:39.1]} 21. Bb5 {[%clk 0:02:00.7]} 21... Bd7 {[%clk 0:01:33.8]} 22.
Bxd7 {[%clk 0:01:56.7]} 22... Nxd7 {[%clk 0:01:34.7]} 23. fxe4 {[%clk
0:01:56.2]} 23... Rxe4 {[%clk 0:01:34.3]} 24. O-O {[%clk 0:01:54.8]} 24... fxe3
{[%clk 0:01:28.5]} 25. Nf5 {[%clk 0:01:45.6]} 25... d4 {[%clk 0:01:21]} 26. Rc4
{[%clk 0:01:30.7]} 26... e2 {[%clk 0:00:54.7]} 27. Re1 {[%clk 0:01:30.4]} 27...
Rf8 {[%clk 0:00:51.5]} 28. Rxd4 {[%clk 0:01:20.9]} 28... Re6 {[%clk 0:00:45.3]}
29. Ng3 {[%clk 0:01:14.1]} 1-0

[Event "*** Titled Tuesday Blitz"]
[Site "Chess.com"]
[Date "2020.05.12"]
[Round "6"]
[White "Tashik"]
[Black "RobertoJBM"]
[Result "1-0"]
[WhiteElo "2459"]
[BlackElo "2572"]
[TimeControl "180+1"]
[EndTime "11:04:21 PDT"]
[Termination "Tashik won by resignation"]

1. c4 {[%clk 0:03:00.9]} 1... c6 {[%clk 0:02:55.6]} 2. d4 {[%clk 0:03:00.1]}
2... d5 {[%clk 0:02:56.5]} 3. Nf3 {[%clk 0:03:00.2]} 3... Nf6 {[%clk 0:02:56.2]}
4. Nc3 {[%clk 0:03:00.7]} 4... dxc4 {[%clk 0:02:55.6]} 5. a4 {[%clk 0:03:00.4]}
5... Bf5 {[%clk 0:02:55.6]} 6. Ne5 {[%clk 0:03:00.1]} 6... Nbd7 {[%clk
0:02:55.3]} 7. Nxc4 {[%clk 0:03:00.6]} 7... Nb6 {[%clk 0:02:54.5]} 8. Ne3 {[%clk
0:02:56.4]} 8... Bg6 {[%clk 0:02:52]} 9. a5 {[%clk 0:02:53.5]} 9... Nbd5 {[%clk
0:02:52]} 10. Nexd5 {[%clk 0:02:53.5]} 10... Nxd5 {[%clk 0:02:50.8]} 11. Qb3
{[%clk 0:02:52.8]} 11... e6 {[%clk 0:02:20.3]} 12. e4 {[%clk 0:02:34.2]} 12...
Nb4 {[%clk 0:02:02.7]} 13. Be3 {[%clk 0:02:32.3]} 13... Be7 {[%clk 0:02:02.9]}
14. Ra4 {[%clk 0:02:29.2]} 14... Qd6 {[%clk 0:01:43.2]} 15. e5 {[%clk
0:02:22.8]} 15... Nc2+ {[%clk 0:01:43.3]} 16. Qxc2 {[%clk 0:02:22.9]} 16... Bxc2
{[%clk 0:01:44]} 17. exd6 {[%clk 0:02:23.3]} 17... Bxa4 {[%clk 0:01:44.2]} 18.
dxe7 {[%clk 0:02:21.7]} 18... Bb3 {[%clk 0:01:44.3]} 19. Ne4 {[%clk 0:02:16.2]}
19... Kxe7 {[%clk 0:01:42.7]} 20. Nc5 {[%clk 0:02:13.1]} 20... Bd5 {[%clk
0:01:42.9]} 21. Nxb7 {[%clk 0:02:13.2]} 21... a6 {[%clk 0:01:42.2]} 22. Bf4
{[%clk 0:01:43.4]} 22... f6 {[%clk 0:01:36.1]} 23. Nc5 {[%clk 0:01:41.1]} 23...
g5 {[%clk 0:01:33]} 24. Bg3 {[%clk 0:01:40.4]} 24... h5 {[%clk 0:01:32.9]} 25.
h4 {[%clk 0:01:38.1]} 25... gxh4 {[%clk 0:01:33]} 26. Rxh4 {[%clk 0:01:37.8]}
26... Kf7 {[%clk 0:01:29.1]} 27. Kd2 {[%clk 0:01:32.4]} 27... Kg6 {[%clk
0:01:27.1]} 28. Bd3+ {[%clk 0:01:29.9]} 28... f5 {[%clk 0:01:26.1]} 29. f3
{[%clk 0:01:23.2]} 29... Rhg8 {[%clk 0:01:24.2]} 30. Be5 {[%clk 0:01:20.3]}
30... Kg5 {[%clk 0:01:23.3]} 31. Rh2 {[%clk 0:01:17.1]} 31... f4 {[%clk
0:01:19.5]} 32. Nxa6 {[%clk 0:01:13.5]} 32... h4 {[%clk 0:01:13.7]} 33. b4
{[%clk 0:01:12.7]} 33... Ra7 {[%clk 0:01:11.3]} 34. Nc5 {[%clk 0:01:05.4]} 34...
Kh5 {[%clk 0:01:10.4]} 35. Ne4 {[%clk 0:01:03.4]} 1-0